[Event "Early-Titled-Tuesday-Blitz-September-05-2023"]
[Site "Chess.com"]
[Date "2023.09.05"]
[Round "5"]
[White "ZuraTqebuchava"]
[Black "CristianS27"]
[Result "0-1"]
[WhiteElo "2264"]
[BlackElo "2513"]
[TimeControl "180+1"]
[EndTime "8:54:30 PDT"]
[Termination "CristianS27 won on time"]

1. e4 {[%clk 0:03:00.4]} 1... e5 {[%clk 0:02:54.5]} 2. Nf3 {[%clk 0:03:00.1]}
2... Nc6 {[%clk 0:02:54.8]} 3. Bb5 {[%clk 0:02:59]} 3... a6 {[%clk 0:02:55.3]}
4. Ba4 {[%clk 0:02:58.5]} 4... Nf6 {[%clk 0:02:55.7]} 5. O-O {[%clk 0:02:58.8]}
5... Nxe4 {[%clk 0:02:55.2]} 6. Re1 {[%clk 0:02:53.8]} 6... Nc5 {[%clk
0:02:55.3]} 7. Bxc6 {[%clk 0:02:53]} 7... dxc6 {[%clk 0:02:56.2]} 8. Nxe5 {[%clk
0:02:52.6]} 8... Be7 {[%clk 0:02:56.7]} 9. d4 {[%clk 0:02:51.2]} 9... Ne6 {[%clk
0:02:57.3]} 10. c3 {[%clk 0:02:51.3]} 10... O-O {[%clk 0:02:57]} 11. h3 {[%clk
0:02:37]} 11... f6 {[%clk 0:02:49.6]} 12. Nf3 {[%clk 0:02:31.6]} 12... Rf7
{[%clk 0:02:50]} 13. Nbd2 {[%clk 0:02:23]} 13... c5 {[%clk 0:02:41.3]} 14. Nb3
{[%clk 0:02:16.2]} 14... cxd4 {[%clk 0:02:40.2]} 15. cxd4 {[%clk 0:02:03.1]}
15... Qd5 {[%clk 0:02:40.1]} 16. Be3 {[%clk 0:01:58.1]} 16... b6 {[%clk
0:02:39.1]} 17. Rc1 {[%clk 0:01:56.2]} 17... Bb7 {[%clk 0:02:38.9]} 18. Qd3
{[%clk 0:01:45.4]} 18... Rd8 {[%clk 0:02:32.9]} 19. Qf1 {[%clk 0:01:36.3]} 19...
Bb4 {[%clk 0:02:27]} 20. Red1 {[%clk 0:01:29.2]} 20... Rfd7 {[%clk 0:02:24.8]}
21. Qc4 {[%clk 0:01:23.2]} 21... Qxc4 {[%clk 0:02:17.8]} 22. Rxc4 {[%clk
0:01:22.4]} 22... Bxf3 {[%clk 0:02:18.4]} 23. gxf3 {[%clk 0:01:20.1]} 23... a5
{[%clk 0:02:15.8]} 24. a3 {[%clk 0:01:16]} 24... Bf8 {[%clk 0:02:14]} 25. Rdc1
{[%clk 0:01:11.6]} 25... Kf7 {[%clk 0:01:44.9]} 26. Kg2 {[%clk 0:01:10.8]} 26...
b5 {[%clk 0:01:44.4]} 27. Rc6 {[%clk 0:01:05]} 27... a4 {[%clk 0:01:44.8]} 28.
Na5 {[%clk 0:00:40.7]} 28... f5 {[%clk 0:01:29.7]} 29. f4 {[%clk 0:00:36.1]}
29... g5 {[%clk 0:01:17.1]} 30. Kf3 {[%clk 0:00:23.8]} 30... gxf4 {[%clk
0:01:15.6]} 31. Rxe6 {[%clk 0:00:13.4]} 31... Kxe6 {[%clk 0:01:13]} 32. Bxf4
{[%clk 0:00:13.9]} 32... Bd6 {[%clk 0:01:06.2]} 33. Bxd6 {[%clk 0:00:10.5]}
33... Rxd6 {[%clk 0:01:06.6]} 34. Nb7 {[%clk 0:00:09.4]} 34... Rxd4 {[%clk
0:00:56.8]} 35. Nxd8+ {[%clk 0:00:09.5]} 35... Rxd8 {[%clk 0:00:57.7]} 36. Rxc7
{[%clk 0:00:09.8]} 36... Rd2 {[%clk 0:00:55.4]} 37. Rxh7 {[%clk 0:00:06.4]}
37... Rxb2 {[%clk 0:00:55.7]} 38. Rh6+ {[%clk 0:00:06.3]} 38... Ke5 {[%clk
0:00:55.4]} 39. Rb6 {[%clk 0:00:06.4]} 39... Kd5 {[%clk 0:00:54.4]} 40. h4
{[%clk 0:00:06]} 40... Kc5 {[%clk 0:00:54.8]} 41. Rb8 {[%clk 0:00:02.6]} 41...
Rb3+ {[%clk 0:00:55.3]} 42. Kf4 {[%clk 0:00:02]} 42... Rxa3 {[%clk 0:00:55.6]}
43. h5 {[%clk 0:00:01.7]} 43... b4 {[%clk 0:00:52.7]} 44. h6 {[%clk 0:00:02]}
44... Rh3 {[%clk 0:00:52.8]} 45. Kg5 {[%clk 0:00:01.9]} 45... a3 {[%clk
0:00:53]} 46. Rc8+ {[%clk 0:00:01.6]} 46... Kd6 {[%clk 0:00:49.8]} 47. Rd8+
{[%clk 0:00:01.9]} 47... Ke7 {[%clk 0:00:49.4]} 48. Rd4 {[%clk 0:00:02.2]} 48...
a2 {[%clk 0:00:48.4]} 49. Rd1 {[%clk 0:00:01.5]} 49... b3 {[%clk 0:00:48.2]} 0-1

[Event "Early-Titled-Tuesday-Blitz-September-05-2023"]
[Site "Chess.com"]
[Date "2023.09.05"]
[Round "5"]
[White "ilushka"]
[Black "ferrufino64"]
[Result "1-0"]
[WhiteElo "2395"]
[BlackElo "2138"]
[TimeControl "180+1"]
[EndTime "8:54:31 PDT"]
[Termination "ilushka won on time"]

1. e4 {[%clk 0:03:00.9]} 1... c5 {[%clk 0:02:54.3]} 2. Nf3 {[%clk 0:03:01]} 2...
d6 {[%clk 0:02:52.8]} 3. Bb5+ {[%clk 0:03:01.2]} 3... Bd7 {[%clk 0:02:52.3]} 4.
a4 {[%clk 0:03:01.6]} 4... a6 {[%clk 0:02:51.3]} 5. Bxd7+ {[%clk 0:03:01.2]}
5... Nxd7 {[%clk 0:02:43.4]} 6. O-O {[%clk 0:03:01.2]} 6... Ngf6 {[%clk
0:02:43.4]} 7. Re1 {[%clk 0:03:00.9]} 7... e6 {[%clk 0:02:38.8]} 8. c3 {[%clk
0:02:39]} 8... Be7 {[%clk 0:02:33]} 9. d4 {[%clk 0:02:36.6]} 9... O-O {[%clk
0:02:33.2]} 10. Bg5 {[%clk 0:02:24.9]} 10... Rc8 {[%clk 0:02:30.3]} 11. Na3
{[%clk 0:02:23.1]} 11... Re8 {[%clk 0:02:21.7]} 12. Qd3 {[%clk 0:01:56.2]} 12...
cxd4 {[%clk 0:02:07.6]} 13. cxd4 {[%clk 0:01:54.5]} 13... d5 {[%clk 0:02:08.1]}
14. Bxf6 {[%clk 0:01:38.9]} 14... Nxf6 {[%clk 0:02:07.4]} 15. e5 {[%clk
0:01:37.9]} 15... Ne4 {[%clk 0:02:07.2]} 16. Rec1 {[%clk 0:01:28.6]} 16... Qb6
{[%clk 0:02:02.4]} 17. Rcb1 {[%clk 0:00:43.4]} 17... Rc7 {[%clk 0:01:30.4]} 18.
Nc2 {[%clk 0:00:32.6]} 18... Rec8 {[%clk 0:01:29.9]} 19. Ne3 {[%clk 0:00:32.8]}
19... Qb4 {[%clk 0:01:03]} 20. h4 {[%clk 0:00:16.7]} 20... g6 {[%clk 0:01:00.7]}
21. g3 {[%clk 0:00:15.9]} 21... h5 {[%clk 0:01:00.3]} 22. Kg2 {[%clk 0:00:15.9]}
22... Kg7 {[%clk 0:00:57.1]} 23. Ne1 {[%clk 0:00:11.5]} 23... Qd2 {[%clk
0:00:52]} 24. Rd1 {[%clk 0:00:07.6]} 24... Qxd3 {[%clk 0:00:33.1]} 25. Nxd3
{[%clk 0:00:08.5]} 25... g5 {[%clk 0:00:10.5]} 26. f3 {[%clk 0:00:07.3]} 26...
Rc2+ {[%clk 0:00:10.7]} 27. Nxc2 {[%clk 0:00:06.4]} 27... Rxc2+ {[%clk
0:00:11.6]} 28. Kh3 {[%clk 0:00:04.8]} 28... g4+ {[%clk 0:00:04.8]} 29. fxg4
{[%clk 0:00:04.5]} 29... hxg4+ {[%clk 0:00:04.9]} 30. Kxg4 {[%clk 0:00:04.8]}
30... Nf2+ {[%clk 0:00:01.1]} 31. Nxf2 {[%clk 0:00:04.6]} 31... Rxf2 {[%clk
0:00:02]} 32. Rac1 {[%clk 0:00:03.1]} 32... Kg6 {[%clk 0:00:01]} 33. Rc7 {[%clk
0:00:02.8]} 1-0

[Event "Early-Titled-Tuesday-Blitz-September-05-2023"]
[Site "Chess.com"]
[Date "2023.09.05"]
[Round "5"]
[White "Roman_Ovetchkin"]
[Black "hansen"]
[Result "0-1"]
[WhiteElo "2639"]
[BlackElo "2871"]
[TimeControl "180+1"]
[EndTime "8:54:35 PDT"]
[Termination "hansen won on time"]

1. d4 {[%clk 0:03:00.9]} 1... Nf6 {[%clk 0:02:58.4]} 2. c4 {[%clk 0:03:00.8]}
2... g6 {[%clk 0:02:56]} 3. Nc3 {[%clk 0:02:59.6]} 3... d5 {[%clk 0:02:56.5]} 4.
cxd5 {[%clk 0:02:56.7]} 4... Nxd5 {[%clk 0:02:57.3]} 5. Na4 {[%clk 0:02:45.7]}
5... Bg7 {[%clk 0:02:52.2]} 6. e4 {[%clk 0:02:45.3]} 6... Nb6 {[%clk 0:02:52.9]}
7. Be3 {[%clk 0:02:45.3]} 7... O-O {[%clk 0:02:44.9]} 8. Be2 {[%clk 0:02:44]}
8... f5 {[%clk 0:02:34.8]} 9. exf5 {[%clk 0:01:48.5]} 9... Bxf5 {[%clk
0:02:02.6]} 10. Nc5 {[%clk 0:01:36.9]} 10... Nc6 {[%clk 0:02:02.2]} 11. Nf3
{[%clk 0:01:17.8]} 11... Kh8 {[%clk 0:01:51.6]} 12. Nxb7 {[%clk 0:01:06.9]}
12... Qb8 {[%clk 0:01:47.8]} 13. Nc5 {[%clk 0:01:05.4]} 13... Nd5 {[%clk
0:01:48.5]} 14. Qb3 {[%clk 0:01:01]} 14... Nxe3 {[%clk 0:01:39.4]} 15. fxe3
{[%clk 0:00:58.1]} 15... e5 {[%clk 0:01:39.8]} 16. Bb5 {[%clk 0:00:46.5]} 16...
Qb6 {[%clk 0:01:33.3]} 17. Qa4 {[%clk 0:00:24.6]} 17... exd4 {[%clk 0:01:18.7]}
18. Bxc6 {[%clk 0:00:24.2]} 18... dxe3 {[%clk 0:01:18.8]} 19. Bxa8 {[%clk
0:00:22.9]} 19... Qxc5 {[%clk 0:01:09.2]} 20. O-O {[%clk 0:00:13]} 20... Rxa8
{[%clk 0:01:02.3]} 21. Rac1 {[%clk 0:00:11.5]} 21... Qb6 {[%clk 0:00:54.9]} 22.
Qb3 {[%clk 0:00:10.3]} 22... Bxb2 {[%clk 0:00:43.7]} 23. Qxb6 {[%clk 0:00:09.3]}
23... cxb6 {[%clk 0:00:42.8]} 24. Rc7 {[%clk 0:00:07.9]} 24... Ba3 {[%clk
0:00:38.5]} 25. Re1 {[%clk 0:00:07.9]} 25... Bc5 {[%clk 0:00:36.8]} 26. h3
{[%clk 0:00:06.1]} 26... a5 {[%clk 0:00:33.4]} 27. Ng5 {[%clk 0:00:06.3]} 27...
h5 {[%clk 0:00:25.5]} 28. g4 {[%clk 0:00:04.6]} 28... hxg4 {[%clk 0:00:12.9]}
29. hxg4 {[%clk 0:00:05.5]} 29... Bd3 {[%clk 0:00:13.3]} 30. Nf7+ {[%clk
0:00:05.2]} 30... Kg8 {[%clk 0:00:13.3]} 31. Ne5 {[%clk 0:00:04.7]} 31... Be4
{[%clk 0:00:08]} 32. Nd7 {[%clk 0:00:03.7]} 32... Bd4 {[%clk 0:00:06.2]} 33. Re2
{[%clk 0:00:02.2]} 33... Bf3 {[%clk 0:00:05.9]} 34. Kf1 {[%clk 0:00:01.7]} 34...
Bxe2+ {[%clk 0:00:05.2]} 35. Kxe2 {[%clk 0:00:01.5]} 35... Re8 {[%clk
0:00:05.5]} 36. g5 {[%clk 0:00:01.9]} 36... Re7 {[%clk 0:00:05.2]} 0-1

[Event "Early-Titled-Tuesday-Blitz-September-05-2023"]
[Site "Chess.com"]
[Date "2023.09.05"]
[Round "5"]
[White "enkhtuul"]
[Black "Gyulamiryan-koryun"]
[Result "1-0"]
[WhiteElo "2362"]
[BlackElo "2059"]
[TimeControl "180+1"]
[EndTime "8:54:36 PDT"]
[Termination "enkhtuul won by checkmate"]

1. d4 {[%clk 0:03:00.9]} 1... Nf6 {[%clk 0:02:59.8]} 2. Nf3 {[%clk 0:02:59.7]}
2... d5 {[%clk 0:02:59]} 3. g3 {[%clk 0:02:59.6]} 3... c6 {[%clk 0:02:58.7]} 4.
Bg2 {[%clk 0:03:00]} 4... e6 {[%clk 0:02:59.2]} 5. O-O {[%clk 0:03:00.5]} 5...
Bd6 {[%clk 0:02:54.9]} 6. Nbd2 {[%clk 0:03:00.4]} 6... h5 {[%clk 0:02:53.7]} 7.
c4 {[%clk 0:02:58.6]} 7... h4 {[%clk 0:02:14.2]} 8. Qc2 {[%clk 0:02:57.1]} 8...
hxg3 {[%clk 0:02:09]} 9. hxg3 {[%clk 0:02:55.5]} 9... Nh5 {[%clk 0:01:54.4]} 10.
e4 {[%clk 0:02:52.9]} 10... Bxg3 {[%clk 0:01:53.8]} 11. fxg3 {[%clk 0:02:52.3]}
11... Nxg3 {[%clk 0:01:54.7]} 12. exd5 {[%clk 0:02:48.3]} 12... Nxf1 {[%clk
0:01:29.9]} 13. Nxf1 {[%clk 0:02:46.5]} 13... exd5 {[%clk 0:01:24.6]} 14. cxd5
{[%clk 0:02:46.1]} 14... Qxd5 {[%clk 0:01:23.4]} 15. Qe2+ {[%clk 0:02:44.3]}
15... Be6 {[%clk 0:01:22.4]} 16. Be3 {[%clk 0:02:29.6]} 16... Qh5 {[%clk
0:01:09.1]} 17. Bf4 {[%clk 0:02:23.5]} 17... Nd7 {[%clk 0:01:02.1]} 18. b4
{[%clk 0:02:20.3]} 18... Nf6 {[%clk 0:00:37.6]} 19. Ng3 {[%clk 0:02:12.8]} 19...
Qd5 {[%clk 0:00:31.7]} 20. a4 {[%clk 0:02:05.1]} 20... Nh5 {[%clk 0:00:30.5]}
21. Nxh5 {[%clk 0:02:01.8]} 21... Qxh5 {[%clk 0:00:31.4]} 22. b5 {[%clk
0:01:59.1]} 22... Qg4 {[%clk 0:00:19]} 23. Be5 {[%clk 0:01:54.5]} 23... O-O
{[%clk 0:00:17]} 24. bxc6 {[%clk 0:01:52.2]} 24... bxc6 {[%clk 0:00:16.3]} 25.
Re1 {[%clk 0:01:50.1]} 25... Bd5 {[%clk 0:00:16.4]} 26. Bd6 {[%clk 0:01:47.7]}
26... Rfe8 {[%clk 0:00:14.9]} 27. Qf2 {[%clk 0:01:33.5]} 27... Rxe1+ {[%clk
0:00:13.5]} 28. Nxe1 {[%clk 0:01:33.1]} 28... Re8 {[%clk 0:00:12.4]} 29. Bg3
{[%clk 0:01:25.6]} 29... Bxg2 {[%clk 0:00:10.4]} 30. Nxg2 {[%clk 0:01:14.9]}
30... Re6 {[%clk 0:00:10.5]} 31. Nf4 {[%clk 0:01:09.8]} 31... Rd6 {[%clk
0:00:04.1]} 32. Kg2 {[%clk 0:01:06.6]} 32... Rh6 {[%clk 0:00:04.5]} 33. Qf3
{[%clk 0:01:01.8]} 33... Qd7 {[%clk 0:00:05]} 34. Qe4 {[%clk 0:00:57.4]} 34...
Rf6 {[%clk 0:00:03.3]} 35. Nd3 {[%clk 0:00:51.1]} 35... Rh6 {[%clk 0:00:03]} 36.
Nf4 {[%clk 0:00:44.5]} 36... Qb7 {[%clk 0:00:03.3]} 37. Qe8+ {[%clk 0:00:42.4]}
37... Kh7 {[%clk 0:00:03.9]} 38. Qxf7 {[%clk 0:00:40.8]} 38... c5+ {[%clk
0:00:03.6]} 39. Qxb7 {[%clk 0:00:39.1]} 39... cxd4 {[%clk 0:00:03.5]} 40. Qe4+
{[%clk 0:00:38.1]} 40... Kh8 {[%clk 0:00:03.4]} 41. Ng6+ {[%clk 0:00:37.7]}
41... Kg8 {[%clk 0:00:04]} 42. Ne7+ {[%clk 0:00:36.7]} 42... Kf8 {[%clk
0:00:02.2]} 43. Nf5 {[%clk 0:00:36.7]} 43... Rf6 {[%clk 0:00:01.4]} 44. Qe7+
{[%clk 0:00:35.6]} 44... Kg8 {[%clk 0:00:02.2]} 45. Qxg7# {[%clk 0:00:36.2]} 1-0

[Event "Early-Titled-Tuesday-Blitz-September-05-2023"]
[Site "Chess.com"]
[Date "2023.09.05"]
[Round "5"]
[White "ckgchess"]
[Black "OparinGrigoriy"]
[Result "1/2-1/2"]
[WhiteElo "2885"]
[BlackElo "2993"]
[TimeControl "180+1"]
[EndTime "8:54:37 PDT"]
[Termination "Game drawn by repetition"]

1. e4 {[%clk 0:03:00.9]} 1... c5 {[%clk 0:02:58.8]} 2. c3 {[%clk 0:03:01.2]}
2... d5 {[%clk 0:02:54.5]} 3. exd5 {[%clk 0:03:02.1]} 3... Qxd5 {[%clk
0:02:55.2]} 4. d4 {[%clk 0:03:02.7]} 4... Nf6 {[%clk 0:02:54.9]} 5. Nf3 {[%clk
0:03:03.4]} 5... e6 {[%clk 0:02:55.3]} 6. Na3 {[%clk 0:03:03.1]} 6... a6 {[%clk
0:02:55.7]} 7. Nc4 {[%clk 0:02:59.6]} 7... Nbd7 {[%clk 0:02:56]} 8. Be2 {[%clk
0:03:00.4]} 8... b5 {[%clk 0:02:55.9]} 9. Ne3 {[%clk 0:03:00.4]} 9... Qc6 {[%clk
0:02:47]} 10. a4 {[%clk 0:02:57.6]} 10... Bb7 {[%clk 0:02:45.8]} 11. axb5 {[%clk
0:02:57.4]} 11... axb5 {[%clk 0:02:46.7]} 12. Rxa8+ {[%clk 0:02:57.6]} 12...
Bxa8 {[%clk 0:02:47.6]} 13. O-O {[%clk 0:02:50.5]} 13... Be7 {[%clk 0:02:47.1]}
14. dxc5 {[%clk 0:02:50.9]} 14... Qxc5 {[%clk 0:02:44.8]} 15. Qd3 {[%clk
0:01:55.8]} 15... b4 {[%clk 0:02:42.4]} 16. Bd2 {[%clk 0:01:49.2]} 16... bxc3
{[%clk 0:02:38.4]} 17. Bxc3 {[%clk 0:01:49.4]} 17... O-O {[%clk 0:02:38.7]} 18.
b4 {[%clk 0:01:47.6]} 18... Qb6 {[%clk 0:02:37.3]} 19. Nc4 {[%clk 0:01:35]}
19... Qb8 {[%clk 0:02:36.9]} 20. Nce5 {[%clk 0:01:13.7]} 20... Nxe5 {[%clk
0:02:36.8]} 21. Nxe5 {[%clk 0:01:05.9]} 21... Nd5 {[%clk 0:02:36.9]} 22. Nd7
{[%clk 0:00:59.4]} 22... Qb7 {[%clk 0:02:33.1]} 23. Nxf8 {[%clk 0:00:58.7]}
23... Bxf8 {[%clk 0:02:14.4]} 24. Bf3 {[%clk 0:00:58.8]} 24... Qc7 {[%clk
0:01:46.4]} 25. Bd2 {[%clk 0:00:55.1]} 25... Qb6 {[%clk 0:01:32.5]} 26. b5
{[%clk 0:00:50.7]} 26... Bb7 {[%clk 0:01:29.1]} 27. h3 {[%clk 0:00:47.7]} 27...
h6 {[%clk 0:01:24.9]} 28. Rc1 {[%clk 0:00:36.2]} 28... Bc5 {[%clk 0:01:24.2]}
29. Qe2 {[%clk 0:00:36.9]} 29... Bd4 {[%clk 0:01:19.1]} 30. Bxd5 {[%clk
0:00:26.7]} 30... Bxd5 {[%clk 0:01:20]} 31. Rc8+ {[%clk 0:00:26.9]} 31... Kh7
{[%clk 0:01:20.4]} 32. Qd3+ {[%clk 0:00:23.2]} 32... f5 {[%clk 0:01:19.4]} 33.
Be3 {[%clk 0:00:21.6]} 33... Qb7 {[%clk 0:01:04.6]} 34. Bxd4 {[%clk 0:00:11.5]}
34... Qxc8 {[%clk 0:01:04.2]} 35. Qg3 {[%clk 0:00:10.2]} 35... Qd7 {[%clk
0:00:55.3]} 36. b6 {[%clk 0:00:09.8]} 36... Bb7 {[%clk 0:00:52.7]} 37. Qe5
{[%clk 0:00:08.5]} 37... Kg8 {[%clk 0:00:47.8]} 38. f3 {[%clk 0:00:08.9]} 38...
Qf7 {[%clk 0:00:46.8]} 39. Qb8+ {[%clk 0:00:08.4]} 39... Kh7 {[%clk 0:00:46.9]}
40. Qe5 {[%clk 0:00:09.2]} 40... Qd7 {[%clk 0:00:46.4]} 41. h4 {[%clk
0:00:09.2]} 41... h5 {[%clk 0:00:44.3]} 42. Kh2 {[%clk 0:00:07.9]} 42... Qe7
{[%clk 0:00:44.3]} 43. Kg3 {[%clk 0:00:07.8]} 43... Qf7 {[%clk 0:00:43.6]} 44.
Kf4 {[%clk 0:00:07.6]} 44... Qe7 {[%clk 0:00:43.8]} 45. Kg3 {[%clk 0:00:07.2]}
45... Kg6 {[%clk 0:00:42.1]} 46. Bc3 {[%clk 0:00:07.2]} 46... Qd7 {[%clk
0:00:33.7]} 47. Bd4 {[%clk 0:00:06.6]} 47... Qe7 {[%clk 0:00:30.2]} 48. Qf4
{[%clk 0:00:05.2]} 48... Kf7 {[%clk 0:00:28.7]} 49. Qe5 {[%clk 0:00:05.1]} 49...
Kg6 {[%clk 0:00:29.2]} 1/2-1/2

[Event "Early-Titled-Tuesday-Blitz-September-05-2023"]
[Site "Chess.com"]
[Date "2023.09.05"]
[Round "5"]
[White "VitaliyBernadskiy"]
[Black "Boundless_Strike"]
[Result "1-0"]
[WhiteElo "2826"]
[BlackElo "2542"]
[TimeControl "180+1"]
[EndTime "8:54:38 PDT"]
[Termination "VitaliyBernadskiy won by checkmate"]

1. e4 {[%clk 0:03:00.9]} 1... d6 {[%clk 0:02:59.7]} 2. d4 {[%clk 0:03:00]} 2...
e5 {[%clk 0:02:59.9]} 3. Nc3 {[%clk 0:03:00.9]} 3... Nd7 {[%clk 0:02:56.2]} 4.
Bc4 {[%clk 0:02:59.7]} 4... Ngf6 {[%clk 0:02:56.2]} 5. Nf3 {[%clk 0:02:57.7]}
5... h6 {[%clk 0:02:54.4]} 6. O-O {[%clk 0:02:53.5]} 6... c6 {[%clk 0:02:54.4]}
7. a4 {[%clk 0:02:49.9]} 7... Be7 {[%clk 0:02:53.8]} 8. Re1 {[%clk 0:02:49.1]}
8... Qc7 {[%clk 0:02:53.1]} 9. Bb3 {[%clk 0:02:47.6]} 9... g5 {[%clk 0:02:51.1]}
10. Be3 {[%clk 0:02:46.7]} 10... Rg8 {[%clk 0:02:30.8]} 11. a5 {[%clk
0:02:40.4]} 11... Nf8 {[%clk 0:02:20.9]} 12. d5 {[%clk 0:02:36.7]} 12... a6
{[%clk 0:02:01.8]} 13. Na4 {[%clk 0:02:27.4]} 13... Ng6 {[%clk 0:01:57.1]} 14.
Nb6 {[%clk 0:02:24.2]} 14... Rb8 {[%clk 0:01:57.3]} 15. dxc6 {[%clk 0:02:22.2]}
15... bxc6 {[%clk 0:01:54.4]} 16. Nd2 {[%clk 0:02:16.3]} 16... Nf4 {[%clk
0:01:48.7]} 17. Ndc4 {[%clk 0:02:13.2]} 17... Be6 {[%clk 0:01:38.9]} 18. Ba4
{[%clk 0:02:05.8]} 18... Kf8 {[%clk 0:01:36.3]} 19. Nd2 {[%clk 0:01:55.6]} 19...
h5 {[%clk 0:01:29.2]} 20. Bb3 {[%clk 0:01:55.2]} 20... Bc8 {[%clk 0:01:11.4]}
21. Bc4 {[%clk 0:01:50.2]} 21... h4 {[%clk 0:01:09]} 22. Bf1 {[%clk 0:01:44.5]}
22... N6h5 {[%clk 0:00:58.6]} 23. Ndc4 {[%clk 0:01:36.9]} 23... g4 {[%clk
0:00:56]} 24. Nxc8 {[%clk 0:01:35.9]} 24... Rxc8 {[%clk 0:00:54.4]} 25. Nb6
{[%clk 0:01:35.4]} 25... Rb8 {[%clk 0:00:45.8]} 26. Bxa6 {[%clk 0:01:35.2]}
26... g3 {[%clk 0:00:44.4]} 27. fxg3 {[%clk 0:01:36.1]} 27... hxg3 {[%clk
0:00:43.8]} 28. h3 {[%clk 0:01:36.5]} 28... d5 {[%clk 0:00:40.3]} 29. exd5
{[%clk 0:01:24.4]} 29... cxd5 {[%clk 0:00:39]} 30. Nxd5 {[%clk 0:01:22.1]} 30...
Qc6 {[%clk 0:00:39.3]} 31. Bxf4 {[%clk 0:01:02.9]} 31... Nxf4 {[%clk 0:00:26.2]}
32. Nxf4 {[%clk 0:01:01]} 32... exf4 {[%clk 0:00:19.6]} 33. Bd3 {[%clk 0:00:48]}
33... Bc5+ {[%clk 0:00:19.7]} 34. Kh1 {[%clk 0:00:47.7]} 34... f3 {[%clk
0:00:14.3]} 35. Be4 {[%clk 0:00:43.3]} 35... fxg2+ {[%clk 0:00:11.2]} 36. Bxg2
{[%clk 0:00:44.2]} 36... Qd6 {[%clk 0:00:03.8]} 37. Qxd6+ {[%clk 0:00:43.4]}
37... Bxd6 {[%clk 0:00:04.7]} 38. a6 {[%clk 0:00:43.9]} 38... Rxb2 {[%clk
0:00:03.4]} 39. a7 {[%clk 0:00:43.6]} 39... Kg7 {[%clk 0:00:04.2]} 40. a8=Q
{[%clk 0:00:42.8]} 40... Rxa8 {[%clk 0:00:04.9]} 41. Rxa8 {[%clk 0:00:42.5]}
41... Rxc2 {[%clk 0:00:05.5]} 42. Rd8 {[%clk 0:00:41.8]} 42... Rd2 {[%clk
0:00:05.5]} 43. Rf1 {[%clk 0:00:40.7]} 43... Kg6 {[%clk 0:00:05]} 44. Be4+
{[%clk 0:00:37.5]} 44... Kg5 {[%clk 0:00:04.4]} 45. Rg8+ {[%clk 0:00:35.9]}
45... Kh6 {[%clk 0:00:04.2]} 46. Rf6+ {[%clk 0:00:29.6]} 46... Kh5 {[%clk
0:00:04.5]} 47. Bf3+ {[%clk 0:00:29.9]} 47... Kh4 {[%clk 0:00:03.6]} 48. Rh6#
{[%clk 0:00:30]} 1-0

[Event "Early-Titled-Tuesday-Blitz-September-05-2023"]
[Site "Chess.com"]
[Date "2023.09.05"]
[Round "5"]
[White "Lennis93"]
[Black "Sargsyan_Shant"]
[Result "0-1"]
[WhiteElo "2817"]
[BlackElo "2945"]
[TimeControl "180+1"]
[EndTime "8:54:41 PDT"]
[Termination "Sargsyan_Shant won by checkmate"]

1. Nf3 {[%clk 0:03:00.9]} 1... g6 {[%clk 0:02:57.4]} 2. e4 {[%clk 0:02:59.7]}
2... Bg7 {[%clk 0:02:57]} 3. d4 {[%clk 0:02:59.9]} 3... c6 {[%clk 0:02:57.6]} 4.
h3 {[%clk 0:02:59.2]} 4... d6 {[%clk 0:02:57.4]} 5. c4 {[%clk 0:02:56.6]} 5...
e5 {[%clk 0:02:54.3]} 6. dxe5 {[%clk 0:02:56]} 6... dxe5 {[%clk 0:02:54.3]} 7.
Qxd8+ {[%clk 0:02:56.4]} 7... Kxd8 {[%clk 0:02:55.2]} 8. Nc3 {[%clk 0:02:56.2]}
8... Kc7 {[%clk 0:02:52.7]} 9. Be3 {[%clk 0:02:52.2]} 9... f6 {[%clk 0:02:49.1]}
10. Bc5 {[%clk 0:02:39.6]} 10... Nd7 {[%clk 0:02:37.1]} 11. Ba3 {[%clk
0:02:39.2]} 11... Bf8 {[%clk 0:02:37.7]} 12. Bxf8 {[%clk 0:02:36.2]} 12... Nxf8
{[%clk 0:02:38.6]} 13. c5 {[%clk 0:02:34.1]} 13... Ne6 {[%clk 0:02:37]} 14. b4
{[%clk 0:02:24.6]} 14... a5 {[%clk 0:02:33.7]} 15. b5 {[%clk 0:02:25]} 15...
Nxc5 {[%clk 0:02:32]} 16. Rc1 {[%clk 0:02:25.1]} 16... Ne7 {[%clk 0:02:23.2]}
17. Bc4 {[%clk 0:02:08.7]} 17... Rd8 {[%clk 0:02:18.3]} 18. Ke2 {[%clk
0:02:07.8]} 18... Be6 {[%clk 0:02:15.5]} 19. Bxe6 {[%clk 0:02:07.3]} 19... Nxe6
{[%clk 0:02:15.8]} 20. bxc6 {[%clk 0:02:06.5]} 20... Nf4+ {[%clk 0:02:11.5]} 21.
Kf1 {[%clk 0:02:06.2]} 21... bxc6 {[%clk 0:02:09.5]} 22. g3 {[%clk 0:02:06.2]}
22... Nd3 {[%clk 0:02:07.9]} 23. Rc2 {[%clk 0:01:57.6]} 23... Nb4 {[%clk
0:02:06.4]} 24. Rc1 {[%clk 0:01:56.5]} 24... Nd3 {[%clk 0:01:57.1]} 25. Rc2
{[%clk 0:01:56.3]} 25... Rab8 {[%clk 0:01:48.8]} 26. Ke2 {[%clk 0:01:39.9]}
26... Nb4 {[%clk 0:01:45.4]} 27. Rd2 {[%clk 0:01:30]} 27... Rxd2+ {[%clk
0:01:25.1]} 28. Nxd2 {[%clk 0:01:30.9]} 28... Nc2 {[%clk 0:01:25.7]} 29. Rc1
{[%clk 0:01:01.7]} 29... Nd4+ {[%clk 0:01:25.6]} 30. Ke3 {[%clk 0:00:58.4]}
30... Rb4 {[%clk 0:01:17.5]} 31. f4 {[%clk 0:00:49.5]} 31... Kd7 {[%clk
0:00:51.1]} 32. fxe5 {[%clk 0:00:46]} 32... fxe5 {[%clk 0:00:52]} 33. Rf1 {[%clk
0:00:44.7]} 33... Nb5 {[%clk 0:00:38.4]} 34. Ne2 {[%clk 0:00:25]} 34... Ra4
{[%clk 0:00:36.3]} 35. Nc1 {[%clk 0:00:22.9]} 35... Ra3+ {[%clk 0:00:35.9]} 36.
Nd3 {[%clk 0:00:20.5]} 36... Ke8 {[%clk 0:00:21]} 37. Nc4 {[%clk 0:00:19.7]}
37... Rxa2 {[%clk 0:00:18.5]} 38. Ncxe5 {[%clk 0:00:20.4]} 38... a4 {[%clk
0:00:17.5]} 39. Nb4 {[%clk 0:00:16.5]} 39... Ra3+ {[%clk 0:00:17.4]} 40. Kf4
{[%clk 0:00:15.9]} 40... Nd4 {[%clk 0:00:15.1]} 41. Rd1 {[%clk 0:00:14.1]} 41...
Ne6+ {[%clk 0:00:14.4]} 42. Kg4 {[%clk 0:00:13.9]} 42... h5+ {[%clk 0:00:15]}
43. Kh4 {[%clk 0:00:13.8]} 43... Re3 {[%clk 0:00:12.4]} 44. Nbxc6 {[%clk
0:00:13]} 44... Rxe4+ {[%clk 0:00:09.7]} 45. g4 {[%clk 0:00:13.5]} 45... Nf5#
{[%clk 0:00:09]} 0-1